[Event "NOR-ch Clubs 2017"]
[Site "Kristiansund"]
[Date "2017.10.21"]
[Round "2"]
[White "Brastad, Kay Robert"]
[Black "Sjoberg, Isak"]
[Result "0-1"]
[ECO "C22"]
[WhiteElo "1263"]
[BlackElo "2067"]
[Annotator "NA RC"]
[PlyCount "56"]
[EventDate "2017.??.??"]
[EventType "team-tourn"]
[EventCountry "NOR"]
[SourceTitle "playchess.com"]
[Source "ChessBase"]
[SourceQuality "1"]
[TimeControl "40/5400:1800"]

{[%evp 8,52,-12,-43,0,-4,7,7,14,25,8,-3,0,-75,-39,-72,-76,-102,-91,-388,-395,-378,-412,-382,-408,-413,-418,-409,-385,-377,-397,-396,-416,-401,-380,-454,-445,32767,32767,-475,-452,-425,-451,-544,-579,-641,-667]} 1. e4 {[%emt 0:00:06]} e5 {[%emt 0:00:06]} 2. d4 {[%emt 0:00:13]} exd4 {[%emt 0:02:43]} 3. Qxd4 {[%emt 0:00:06]} Nc6 {[%emt 0:01:42]} 4. Qe3 {[%emt 0:00:10]} Nf6 {[%emt 0:02:26]} 5. Bd3 {[%emt 0:00:32] C22: Centre Game} (5. Bd2 Bb4 6. Nc3 O-O 7. O-O-O Re8 8. Qf4 Bxc3 9. Bxc3 Rxe4 10. Qg3 d5 11. f3 Re6 12. Ne2 Rd6 13. Qf4 d4 14. Nxd4 Nd5 15. Nxc6 bxc6 16. Rxd5 cxd5 {0-1 (29) Nepomniachtchi,I (2751)-Anand,V (2783) Saint Louis 2017}) 5... d6 {[%emt 0:06:52]} 6. Nc3 {[%emt 0:01:05]} Be7 {[%emt 0:01:13]} 7. Nf3 {[%emt 0:00:20]} a6 $146 {[%emt 0:03:37]} ({Predecessor:} 7... O-O 8. O-O Ng4 9. Qe2 Be6 10. Rd1 Re8 11. h3 Nge5 12. Nxe5 Nxe5 {½-½ (25) Sahuquillo Cruz,A (1766)-Rendo Quindos,P (1657) Madrid 2014}) 8. O-O {[%emt 0:01:09]} O-O {[%emt 0:01:32]} 9. Qe2 {[%emt 0:02:06]} Bg4 {[%emt 0:00:04]} 10. Nd5 {[%emt 0:01:47]} (10. Rd1 $11) 10... Ne5 {[%emt 0:06:45]} 11. Nxe7+ {[%emt 0:04:59]} Qxe7 {[%emt 0:00:07]} 12. Bg5 {[%emt 0:01:50]} Qe6 {[%emt 0:04:40]} 13. Nd4 $2 {[%emt 0:05:31]} (13. Bh4 $17) 13... Bxe2 {[%emt 0:00:14]} 14. Nxe6 {[%emt 0:00:08]} Bxf1 {[%emt 0:00:12]} ({Not} 14... fxe6 15. Bxe2 Nxe4 16. Be3 $15) 15. Nxf8 {[%emt 0:00:15]} Bxd3 {[%emt 0:00:06]} ({Lieber nicht} 15... Rxf8 16. Rxf1 Re8 17. f3 $14) (15... Kxf8 16. Rxf1 Ke7 17. f4 $11) ({Weniger gut wäre} 15... Nxd3 16. Bxf6 $17 Nc5 17. Kxf1 $17) 16. cxd3 {[%emt 0:00:30]} Kxf8 {[%emt 0:00:05]} ({Viel schwächer ist} 16... Rxf8 17. Rd1 $19) 17. Rd1 {[%emt 0:03:57]} h6 {[%emt 0:00:57]} 18. Bxf6 {[%emt 0:00:48]} gxf6 {[%emt 0:00:01]} 19. d4 {[%emt 0:00:19]} Nc4 {[%emt 0:00:17]} 20. b3 {[%emt 0:00:49]} Nb6 {[%emt 0:00:24]} 21. d5 {[%emt 0:02:40]} Ke7 {[%emt 0:00:59]} 22. Rc1 Rc8 23. f3 {[%emt 0:00:49]} c6 {[%emt 0:00:05]} 24. dxc6 {[%emt 0:01:14]} Rxc6 {[%emt 0:00:01]} 25. Rd1 {[%emt 0:01:31]} Rc2 {[%emt 0:00:06]} 26. a4 $19 {[%emt 0:00:09]} Rb2 {[%emt 0:00:17]} 27. Rd3 {[%emt 0:00:14]} Nd7 {[%emt 0:00:06]} 28. Kf1 {[%emt 0:00:06]} Nc5 {[%emt 0:00:03]} 0-1

[Event "NOR-ch Clubs 2017"]
[Site "Kristiansund"]
[Date "2017.10.21"]
[Round "3"]
[White "David, Edwin"]
[Black "Barna, Andre"]
[Result "1/2-1/2"]
[ECO "C00"]
[WhiteElo "2211"]
[BlackElo "2148"]
[Annotator "NA"]
[PlyCount "26"]
[EventDate "2017.??.??"]
[EventType "team-tourn"]
[EventCountry "NOR"]
[SourceTitle "playchess.com"]
[Source "ChessBase"]
[SourceQuality "1"]
[TimeControl "40/5400:1800"]

1. e4 {[%emt 0:00:14]} e6 {[%emt 0:01:50]} 2. Nf3 {[%emt 0:00:26]} d5 {[%emt 0:00:38]} 3. e5 {[%emt 0:00:08]} c5 {[%emt 0:00:39]} 4. b4 {[%emt 0:00:08]} b6 {[%emt 0:01:00]} 5. a3 {[%emt 0:01:10] LiveBook: 13 Partien} Ne7 {[%emt 0:08:10]} 6. c3 $11 {[%emt 0:00:33]} Nf5 {[%emt 0:04:04]} 7. d4 {[%emt 0:00:23]} h5 {[%emt 0:00:22]} 8. Bd3 {[%emt 0:04:58]} Be7 {[%emt 0:00:59]} 9. O-O {[%emt 0:01:41]} g5 {[%emt 0:00:46]} 10. dxc5 {[%emt 0:00:34]} bxc5 {[%emt 0:00:12]} 11. bxc5 {[%emt 0:00:21]} g4 {[%emt 0:02:13]} 12. Nd4 {[%emt 0:01:11]} Bxc5 {[%emt 0:00:51]} 13. Bxf5 {[%emt 0:10:37]} exf5 {[%emt 0:03:02]} 1/2-1/2

[Event "NOR-ch Clubs 2017"]
[Site "Kristiansund"]
[Date "2017.10.21"]
[Round "3"]
[White "Moen, Ole Christian"]
[Black "Kyrkjebo, Marte B"]
[Result "1-0"]
[ECO "C78"]
[WhiteElo "2174"]
[BlackElo "1834"]
[Annotator "NA"]
[PlyCount "65"]
[EventDate "2017.??.??"]
[EventType "team-tourn"]
[EventCountry "NOR"]
[SourceTitle "playchess.com"]
[Source "ChessBase"]
[SourceQuality "1"]
[TimeControl "40/5400:1800"]

1. e4 {[%emt 0:00:04]} e5 {[%emt 0:00:04]} 2. Nf3 {[%emt 0:00:16]} Nc6 {[%emt 0:00:06]} 3. Bb5 {[%emt 0:00:11]} a6 {[%emt 0:00:09]} 4. Ba4 {[%emt 0:00:06]} Nf6 {[%emt 0:00:04]} 5. O-O {[%emt 0:00:08]} b5 {[%emt 0:00:08]} 6. Bb3 {[%emt 0:00:07]} Bc5 {[%emt 0:00:26]} 7. d3 {[%emt 0:02:18]} d6 {[%emt 0:01:17]} 8. Be3 {[%emt 0:00:54]} Bxe3 {[%emt 0:05:19]} 9. fxe3 {[%emt 0:00:24]} O-O {[%emt 0:01:20] LiveBook: 4 Games} 10. Qe1 $11 {[%emt 0:02:03]} Ne7 {[%emt 0:15:13]} 11. a4 {[%emt 0:00:10]} Bb7 {[%emt 0:06:15]} 12. Nc3 {[%emt 0:01:56]} b4 {[%emt 0:04:44]} 13. Ne2 {[%emt 0:00:48]} c5 {[%emt 0:01:56]} 14. Ng3 {[%emt 0:04:03]} Ng6 {[%emt 0:04:46]} 15. h4 {[%emt 0:02:27]} h6 {[%emt 0:06:23]} 16. Nf5 {[%emt 0:02:40]} Ne7 {[%emt 0:04:47]} 17. Nxh6+ {[%emt 0:03:25]} gxh6 {[%emt 0:12:02]} 18. Nxe5 {[%emt 0:00:10]} dxe5 {[%emt 0:04:52]} 19. Rxf6 {[%emt 0:00:09]} Kg7 {[%emt 0:05:12]} 20. Qf2 {[%emt 0:04:48]} Qe8 {[%emt 0:05:26]} 21. Rf1 {[%emt 0:01:28]} Ng6 {[%emt 0:01:58]} 22. Rxf7+ {[%emt 0:04:42]} Rxf7 {[%emt 0:00:34]} 23. Qxf7+ {[%emt 0:00:05]} Qxf7 {[%emt 0:00:47]} 24. Rxf7+ {[%emt 0:00:05]} Kh8 {[%emt 0:00:36]} 25. h5 {[%emt 0:00:08]} Nf8 {[%emt 0:01:42]} 26. Rxb7 {[%emt 0:00:09]} Rd8 {[%emt 0:01:06]} 27. Rb6 {[%emt 0:00:40]} Kg7 {[%emt 0:00:13]} 28. Rxa6 {[%emt 0:00:06]} Nd7 {[%emt 0:00:22]} 29. Rg6+ {[%emt 0:00:28]} Kh7 {[%emt 0:00:14]} 30. Rd6 {[%emt 0:00:06]} Kg7 {[%emt 0:00:29]} 31. Be6 {[%emt 0:00:07]} Kf6 {[%emt 0:00:57]} 32. Rxd7 {[%emt 0:00:11]} Rxd7 {[%emt 0:00:07]} 33. Bxd7 {[%emt 0:00:11]} 1-0

[Event "NOR-ch Clubs 2017"]
[Site "Kristiansund"]
[Date "2017.10.21"]
[Round "3"]
[White "Kolas, Tore"]
[Black "Lobersli, Henrik Oie"]
[Result "1-0"]
[ECO "C55"]
[WhiteElo "2168"]
[BlackElo "2047"]
[Annotator "NA"]
[PlyCount "47"]
[EventDate "2017.??.??"]
[EventType "team-tourn"]
[EventCountry "NOR"]
[SourceTitle "playchess.com"]
[Source "ChessBase"]
[SourceQuality "1"]
[TimeControl "40/5400:1800"]

1. e4 {[%emt 0:00:03]} e5 {[%emt 0:00:14]} 2. Nf3 {[%emt 0:00:12]} Nc6 {[%emt 0:00:21]} 3. Bc4 {[%emt 0:02:45]} Nf6 {[%emt 0:00:34]} 4. d3 {[%emt 0:00:30]} Be7 {[%emt 0:00:35]} 5. O-O {[%emt 0:01:03]} O-O {[%emt 0:00:22]} 6. Re1 {[%emt 0:01:30]} d6 {[%emt 0:00:54]} 7. a4 {[%emt 0:01:58] LiveBook: 1099 Games} Kh8 $14 {[%emt 0:04:04]} 8. h3 {[%emt 0:06:13]} Ng8 {[%emt 0:04:02]} 9. d4 {[%emt 0:02:44]} f5 {[%emt 0:15:09]} 10. dxe5 {[%emt 0:10:42]} fxe4 {[%emt 0:04:16]} 11. exd6 {[%emt 0:13:51]} exf3 {[%emt 0:25:18]} 12. dxe7 {[%emt 0:03:55]} Qxd1 {[%emt 0:00:42]} 13. Rxd1 {[%emt 0:01:31]} Ngxe7 {[%emt 0:00:28]} 14. Be3 {[%emt 0:29:25]} fxg2 {[%emt 0:07:15]} 15. Kxg2 {[%emt 0:00:16]} b6 {[%emt 0:00:50]} 16. Nc3 {[%emt 0:03:02]} Bb7 {[%emt 0:02:49]} 17. Bd3 {[%emt 0:06:46]} Nb4+ {[%emt 0:09:51]} 18. Ne4 {[%emt 0:00:09]} Nf5 {[%emt 0:00:43]} 19. Kg1 {[%emt 0:01:14]} Rae8 {[%emt 0:01:09]} 20. Ng5 {[%emt 0:00:03]} Nxe3 {[%emt 0:01:14]} 21. fxe3 {[%emt 0:00:01]} h6 {[%emt 0:00:32]} 22. Nf7+ {[%emt 0:01:26]} Rxf7 {[%emt 0:03:40]} 23. Bg6 {[%emt 0:00:01]} Ree7 {[%emt 0:00:05]} 24. Rd8+ {[%emt 0:00:07]} 1-0

[Event "NOR-ch Clubs 2017"]
[Site "Kristiansund"]
[Date "2017.10.21"]
[Round "3"]
[White "Lundeby, Oyvind Andersen"]
[Black "Unneland, Arne"]
[Result "1-0"]
[ECO "A06"]
[WhiteElo "2155"]
[BlackElo "1648"]
[Annotator "NA"]
[PlyCount "63"]
[EventDate "2017.??.??"]
[EventType "team-tourn"]
[EventCountry "NOR"]
[SourceTitle "playchess.com"]
[Source "ChessBase"]
[SourceQuality "1"]
[TimeControl "40/5400:1800"]

1. Nf3 {[%emt 0:00:05]} d5 {[%emt 0:00:10]} 2. e3 {[%emt 0:00:17]} Nf6 {[%emt 0:00:44]} 3. d4 {[%emt 0:00:42]} Bg4 {[%emt 0:00:33]} 4. c4 {[%emt 0:00:38]} e6 {[%emt 0:00:36]} 5. Qb3 {[%emt 0:00:38]} b6 {[%emt 0:06:54]} (5... Bxf3 $5 6. Qxb7 {[#]} (6. gxf3 b6 $14) 6... Bxg2 $1 {[%mdl 512]} 7. Bxg2 Nbd7 $14) 6. Ne5 {[%emt 0:00:21]} Bd6 {[%emt 0:04:31]} 7. cxd5 $16 {[%emt 0:01:38]} exd5 {[%emt 0:03:24]} 8. Bb5+ {[%emt 0:02:41]} Bd7 {[%emt 0:01:57]} 9. Nxd7 {[%emt 0:01:07]} Nbxd7 {[%emt 0:00:25]} 10. Bc6 {[%emt 0:01:28]} Rb8 {[%emt 0:02:14]} 11. Nc3 {[%emt 0:00:33]} O-O {[%emt 0:00:50]} 12. Bd2 {[%emt 0:04:08]} Ne4 {[%emt 0:03:49]} 13. Nxe4 {[%emt 0:12:33]} dxe4 {[%emt 0:00:35]} 14. Bxe4 {[%emt 0:06:21]} c5 {[%emt 0:01:57]} 15. Qd3 {[%emt 0:02:21]} Nf6 {[%emt 0:02:16]} 16. Bf3 {[%emt 0:02:21]} Rc8 {[%emt 0:04:51]} 17. dxc5 {[%emt 0:03:58]} Bxc5 {[%emt 0:01:12]} 18. Qxd8 {[%emt 0:02:06]} Rfxd8 {[%emt 0:07:57]} 19. Rc1 {[%emt 0:00:36]} Rd6 {[%emt 0:00:46]} 20. b4 {[%emt 0:04:51]} Rxd2 {[%emt 0:01:01]} 21. Kxd2 {[%emt 0:00:15]} Bxb4+ {[%emt 0:00:05]} 22. Ke2 {[%emt 0:00:07]} Bc5 {[%emt 0:00:29]} 23. g4 {[%emt 0:01:11]} g5 {[%emt 0:02:35]} 24. Rhd1 {[%emt 0:02:24]} Rc7 {[%emt 0:02:12]} 25. Rd8+ {[%emt 0:01:04]} Kg7 {[%emt 0:00:08]} 26. h3 {[%emt 0:00:09]} h6 {[%emt 0:05:43]} 27. Rb8 {[%emt 0:00:13]} a5 {[%emt 0:00:53]} 28. Rb7 {[%emt 0:00:10]} Rc8 {[%emt 0:03:07]} 29. Rxb6 {[%emt 0:00:27]} Bxb6 {[%emt 0:00:44]} 30. Rxc8 {[%emt 0:00:07]} Nd7 {[%emt 0:01:16]} 31. Rc6 {[%emt 0:00:54]} f6 {[%emt 0:00:49]} 32. Rxb6 1-0

[Event "NOR-ch Clubs 2017"]
[Site "Kristiansund"]
[Date "2017.10.21"]
[Round "3"]
[White "Nyland, Thomas"]
[Black "Thingstad, Even"]
[Result "0-1"]
[ECO "B18"]
[WhiteElo "2152"]
[BlackElo "2214"]
[Annotator "NA"]
[PlyCount "118"]
[EventDate "2017.??.??"]
[EventType "team-tourn"]
[EventCountry "NOR"]
[SourceTitle "playchess.com"]
[Source "ChessBase"]
[SourceQuality "1"]
[TimeControl "40/5400:1800"]

1. e4 {[%emt 0:00:02]} c6 {[%emt 0:00:21]} 2. d4 {[%emt 0:00:12]} d5 {[%emt 0:00:05]} 3. Nc3 {[%emt 0:01:10]} dxe4 {[%emt 0:00:04]} 4. Nxe4 {[%emt 0:00:05]} Bf5 {[%emt 0:00:06]} 5. Ng3 {[%emt 0:00:18]} Bg6 {[%emt 0:00:03]} 6. c3 {[%emt 0:00:17]} e6 {[%emt 0:04:04]} 7. Nf3 {[%emt 0:00:11]} Nd7 {[%emt 0:00:47]} 8. Bd3 {[%emt 0:02:18]} Bxd3 {[%emt 0:05:19]} 9. Qxd3 {[%emt 0:00:06]} Ngf6 {[%emt 0:00:20]} 10. Bg5 $11 {[%emt 0:02:01]} h6 {[%emt 0:03:04]} 11. Bd2 {[%emt 0:02:00]} Bd6 {[%emt 0:01:05]} 12. O-O {[%emt 0:02:34]} O-O {[%emt 0:02:33]} 13. Rfe1 {[%emt 0:05:16]} c5 {[%emt 0:08:48]} 14. Ne4 {[%emt 0:04:59]} Be7 {[%emt 0:06:30]} 15. Be3 {[%emt 0:05:32]} cxd4 {[%emt 0:11:00]} 16. Bxd4 {[%emt 0:03:32]} Qc7 {[%emt 0:04:10]} 17. Nxf6+ {[%emt 0:03:49]} Bxf6 {[%emt 0:00:34]} 18. Bxf6 {[%emt 0:00:29]} Nxf6 {[%emt 0:00:16]} 19. Rad1 {[%emt 0:00:42]} Rac8 {[%emt 0:04:09]} 20. h3 {[%emt 0:05:47]} Qc5 {[%emt 0:01:43]} 21. Ne5 {[%emt 0:02:58]} b5 {[%emt 0:04:06]} 22. Qd6 {[%emt 0:03:06]} a5 {[%emt 0:03:11]} 23. Qxc5 {[%emt 0:01:04]} Rxc5 {[%emt 0:00:03]} 24. Nd7 {[%emt 0:00:18]} Nxd7 {[%emt 0:01:05]} 25. Rxd7 {[%emt 0:00:06]} Rb8 {[%emt 0:07:28]} 26. Red1 {[%emt 0:00:38]} b4 {[%emt 0:01:17]} 27. Rd8+ {[%emt 0:04:32]} Rxd8 {[%emt 0:00:03]} 28. Rxd8+ {[%emt 0:00:04]} Kh7 {[%emt 0:00:03]} 29. cxb4 {[%emt 0:01:10]} axb4 {[%emt 0:00:33]} 30. Rb8 {[%emt 0:03:19]} Rc4 {[%emt 0:00:58]} 31. Kh2 {[%emt 0:01:58]} Kg6 {[%emt 0:02:00]} 32. Kg3 {[%emt 0:00:32]} e5 {[%emt 0:00:54]} 33. Kf3 {[%emt 0:00:36]} h5 {[%emt 0:04:16]} 34. Ke3 {[%emt 0:01:01]} f5 {[%emt 0:02:59]} 35. f3 {[%emt 0:05:48]} h4 {[%emt 0:04:51]} 36. Kd3 {[%emt 0:01:42]} Rd4+ {[%emt 0:00:09]} 37. Kc2 {[%emt 0:02:00]} e4 {[%emt 0:00:47]} 38. fxe4 {[%emt 0:01:53]} fxe4 {[%emt 0:00:01]} 39. Kb3 {[%emt 0:03:05]} Kf5 {[%emt 0:00:03]} 40. Rxb4 {[%emt 0:05:13]} Rxb4+ {[%emt 0:30:07]} 41. Kxb4 {[%emt 0:30:06]} Kf4 {[%emt 0:00:00]} 42. Kc4 {[%emt 0:00:00]} Ke3 {[%emt 0:00:00]} 43. a4 {[%emt 0:00:00]} Kf2 {[%emt 0:00:00]} 44. a5 {[%emt 0:00:00]} e3 {[%emt 0:00:00]} 45. a6 {[%emt 0:00:00]} e2 {[%emt 0:00:00]} 46. a7 {[%emt 0:00:00]} e1=Q {[%emt 0:00:00]} 47. a8=Q {[%emt 0:00:00]} Qf1+ {[%emt 0:00:00]} 48. Kd4 {[%emt 0:00:00]} Qxg2 {[%emt 0:00:00]} 49. Qf8+ {[%emt 0:00:00]} Kg1 {[%emt 0:00:00]} 50. b4 {[%emt 0:00:00]} Qxh3 {[%emt 0:00:00]} 51. Qxg7+ {[%emt 0:00:00]} Qg3 {[%emt 0:00:00]} 52. Qh7 {[%emt 0:00:00]} h3 {[%emt 0:00:00]} 53. Qb1+ {[%emt 0:00:00]} Kg2 {[%emt 0:00:00]} 54. Qe4+ {[%emt 0:00:00]} Qf3 {[%emt 0:00:00]} 55. Qg6+ {[%emt 0:00:00]} Kf1 {[%emt 0:00:00]} 56. Qb1+ {[%emt 0:00:00]} Kf2 {[%emt 0:00:00]} 57. Qc2+ {[%emt 0:00:00]} Kg3 {[%emt 0:00:00]} 58. Ke5 {[%emt 0:00:00]} h2 {[%emt 0:00:00]} 59. Qg6+ {[%emt 0:00:00]} Kf2 {[%emt 0:00:00]} 0-1

[Event "NOR-ch Clubs 2017"]
[Site "Kristiansund"]
[Date "2017.10.21"]
[Round "3"]
[White "Laverton, Christian"]
[Black "Hoem, Robin"]
[Result "1/2-1/2"]
[ECO "D56"]
[WhiteElo "2113"]
[BlackElo "2138"]
[Annotator "NA"]
[PlyCount "71"]
[EventDate "2017.??.??"]
[EventType "team-tourn"]
[EventCountry "NOR"]
[SourceTitle "playchess.com"]
[Source "ChessBase"]
[SourceQuality "1"]
[TimeControl "40/5400:1800"]

1. d4 {[%emt 0:00:06]} d5 {[%emt 0:00:11]} 2. c4 {[%emt 0:00:20]} e6 {[%emt 0:00:06]} 3. Nc3 {[%emt 0:01:01]} Nf6 {[%emt 0:00:07]} 4. Bg5 {[%emt 0:00:44]} Be7 {[%emt 0:00:16]} 5. e3 {[%emt 0:00:53]} h6 {[%emt 0:00:15]} 6. Bh4 {[%emt 0:00:52]} O-O {[%emt 0:00:09]} 7. Nf3 {[%emt 0:01:25]} Ne4 {[%emt 0:00:16]} 8. Bxe7 {[%emt 0:00:58]} Qxe7 {[%emt 0:00:05]} 9. Qb3 $11 {[%emt 0:06:44]} c6 {[%emt 0:03:35]} 10. Bd3 {[%emt 0:02:09]} Nxc3 {[%emt 0:03:39]} 11. Qxc3 {[%emt 0:02:03]} dxc4 {[%emt 0:01:44]} 12. Bxc4 {[%emt 0:01:39]} Nd7 {[%emt 0:05:14]} 13. O-O {[%emt 0:02:32]} b6 {[%emt 0:01:33]} 14. Rad1 {[%emt 0:13:23]} Bb7 {[%emt 0:01:00]} 15. Ne5 {[%emt 0:02:25]} Nxe5 {[%emt 0:04:50]} 16. dxe5 {[%emt 0:00:05]} Rfd8 {[%emt 0:02:55]} 17. f3 {[%emt 0:03:44]} c5 {[%emt 0:04:28]} 18. a3 {[%emt 0:08:51]} Qc7 {[%emt 0:10:27]} 19. Bb3 {[%emt 0:09:11]} b5 {[%emt 0:10:39]} 20. Rxd8+ {[%emt 0:03:58]} Rxd8 {[%emt 0:00:04]} 21. Rd1 {[%emt 0:00:22]} Rxd1+ 22. Bxd1 {[%emt 0:00:07]} a5 {[%emt 0:05:27]} 23. Bc2 {[%emt 0:06:23]} g6 {[%emt 0:00:19]} 24. b4 {[%emt 0:02:57]} axb4 {[%emt 0:02:53]} 25. axb4 {[%emt 0:00:06]} c4 {[%emt 0:00:31]} 26. Kf2 {[%emt 0:04:07]} Qe7 {[%emt 0:01:43]} 27. g3 {[%emt 0:01:16]} Qg5 {[%emt 0:04:38]} 28. h4 {[%emt 0:01:56]} Qe7 {[%emt 0:00:47]} 29. Qd2 {[%emt 0:01:37]} Bc6 {[%emt 0:08:22]} 30. e4 {[%emt 0:03:52]} Qa7+ {[%emt 0:01:15]} 31. Qe3 {[%emt 0:00:25]} Qa2 {[%emt 0:00:34]} 32. Qc3 {[%emt 0:00:27]} Qa7+ {[%emt 0:01:37]} 33. Kg2 {[%emt 0:00:51]} Qd7 {[%emt 0:02:20]} 34. Kf2 {[%emt 0:00:16]} Qa7+ {[%emt 0:00:49]} 35. Kg2 {[%emt 0:00:03]} Qd7 {[%emt 0:02:14]} 36. Kf2 1/2-1/2

[Event "NOR-ch Clubs 2017"]
[Site "Kristiansund"]
[Date "2017.10.21"]
[Round "3"]
[White "Darnell, Anton"]
[Black "Berg-Jensen, Joachim"]
[Result "1/2-1/2"]
[ECO "D00"]
[WhiteElo "2078"]
[BlackElo "2175"]
[Annotator "NA"]
[PlyCount "51"]
[EventDate "2017.??.??"]
[EventType "team-tourn"]
[EventCountry "NOR"]
[SourceTitle "playchess.com"]
[Source "ChessBase"]
[SourceQuality "1"]
[TimeControl "40/5400:1800"]

1. d4 {[%emt 0:00:02]} d5 {[%emt 0:00:05]} 2. Bf4 {[%emt 0:00:22]} e6 {[%emt 0:00:24]} 3. e3 {[%emt 0:00:16]} Nf6 {[%emt 0:01:57]} 4. Nf3 {[%emt 0:00:54]} Bd6 {[%emt 0:00:30] LiveBook: 365 Games} 5. Bg3 {[%emt 0:00:22]} Ne4 {[%emt 0:03:37]} 6. Bh4 {[%emt 0:02:37]} Be7 {[%emt 0:02:32]} 7. Bxe7 {[%emt 0:01:43]} Qxe7 {[%emt 0:00:07]} 8. c3 {[%emt 0:00:50]} O-O {[%emt 0:01:09]} 9. Nbd2 $11 {[%emt 0:00:27]} Nxd2 {[%emt 0:03:54]} 10. Qxd2 {[%emt 0:00:17]} c5 {[%emt 0:00:17]} 11. Bd3 {[%emt 0:00:39]} Nc6 {[%emt 0:05:03]} 12. O-O {[%emt 0:05:47]} Rd8 {[%emt 0:11:36]} 13. Qc2 {[%emt 0:01:55]} h6 {[%emt 0:00:23]} 14. Bb5 {[%emt 0:06:52]} Bd7 {[%emt 0:06:27]} 15. Rad1 {[%emt 0:02:21]} Nxd4 {[%emt 0:12:15]} 16. Nxd4 {[%emt 0:00:08]} cxd4 {[%emt 0:00:07]} 17. Bxd7 {[%emt 0:00:12]} Rxd7 {[%emt 0:00:06]} 18. Rxd4 {[%emt 0:01:49]} e5 {[%emt 0:04:11]} 19. Rd2 {[%emt 0:00:22]} Rad8 {[%emt 0:00:11]} 20. Rfd1 {[%emt 0:00:23]} d4 {[%emt 0:02:50]} 21. cxd4 {[%emt 0:03:21]} exd4 {[%emt 0:00:16]} 22. exd4 {[%emt 0:00:12]} Rxd4 {[%emt 0:01:21]} 23. Kf1 {[%emt 0:02:10]} Rxd2 {[%emt 0:06:02]} 24. Rxd2 {[%emt 0:00:16]} Rxd2 {[%emt 0:00:13]} 25. Qxd2 {[%emt 0:00:10]} Qe4 {[%emt 0:00:20]} 26. a3 {[%emt 0:00:52]} 1/2-1/2

[Event "NOR-ch Clubs 2017"]
[Site "Kristiansund"]
[Date "2017.10.21"]
[Round "3"]
[White "Kyrkjebo, Hanna B"]
[Black "Moen, Andreas"]
[Result "0-1"]
[ECO "B51"]
[WhiteElo "1996"]
[BlackElo "2331"]
[Annotator "NA"]
[PlyCount "98"]
[EventDate "2017.??.??"]
[EventType "team-tourn"]
[EventCountry "NOR"]
[SourceTitle "playchess.com"]
[Source "ChessBase"]
[SourceQuality "1"]
[TimeControl "40/5400:1800"]

1. e4 {[%emt 0:00:03]} c5 {[%emt 0:01:02]} 2. Nf3 {[%emt 0:00:14]} d6 {[%emt 0:02:32]} 3. Bb5+ {[%emt 0:00:28]} Nd7 {[%emt 0:00:37]} 4. O-O {[%emt 0:03:22]} a6 {[%emt 0:03:30] LiveBook: 1005 Games} 5. Bd3 $11 {[%emt 0:06:28]} Ngf6 {[%emt 0:07:59]} 6. Re1 {[%emt 0:04:49]} b5 {[%emt 0:13:34]} 7. c4 {[%emt 0:07:21]} Ne5 {[%emt 0:03:34]} 8. Nxe5 {[%emt 0:08:22]} dxe5 {[%emt 0:01:10]} 9. Qc2 {[%emt 0:01:54]} b4 {[%emt 0:00:46]} 10. b3 {[%emt 0:05:31]} e6 {[%emt 0:02:16]} 11. Bb2 {[%emt 0:00:47]} Bd6 {[%emt 0:01:38]} 12. Bf1 {[%emt 0:01:47]} Bb7 {[%emt 0:03:38]} 13. d3 {[%emt 0:00:42]} O-O {[%emt 0:04:34]} 14. Nd2 a5 {[%emt 0:00:47]} 15. a4 {[%emt 0:06:40]} Nd7 {[%emt 0:02:25]} 16. g3 {[%emt 0:05:06]} Nb8 {[%emt 0:02:07]} 17. Bg2 {[%emt 0:00:47]} Nc6 {[%emt 0:00:55]} 18. Nf3 {[%emt 0:00:58]} Qe7 {[%emt 0:06:01]} 19. Rad1 {[%emt 0:02:21]} Rad8 {[%emt 0:00:24]} 20. Qc1 {[%emt 0:03:37]} Bb8 {[%emt 0:01:51]} 21. Qa1 {[%emt 0:00:38]} f6 {[%emt 0:02:52]} 22. Bc1 {[%emt 0:06:24]} Bc8 {[%emt 0:00:38]} 23. Be3 {[%emt 0:02:52]} Bd7 {[%emt 0:01:10]} 24. Qc1 {[%emt 0:00:50]} Be8 {[%emt 0:00:44]} 25. h3 {[%emt 0:02:48]} Bh5 {[%emt 0:02:59]} 26. Rd2 {[%emt 0:03:09]} Kh8 {[%emt 0:02:52]} 27. Nh2 {[%emt 0:01:11]} Rd7 {[%emt 0:02:23]} 28. Bf3 {[%emt 0:01:04]} Bg6 {[%emt 0:00:33]} 29. h4 {[%emt 0:00:54]} Rfd8 {[%emt 0:00:43]} 30. Red1 {[%emt 0:00:35]} h6 {[%emt 0:01:24]} 31. Kg2 {[%emt 0:01:31]} Bh7 {[%emt 0:00:54]} 32. Qc2 {[%emt 0:01:19]} Qd6 {[%emt 0:00:24]} 33. Be2 {[%emt 0:02:14]} f5 {[%emt 0:01:08]} 34. exf5 {[%emt 0:00:19]} exf5 {[%emt 0:01:28]} 35. f4 {[%emt 0:00:16]} Nd4 {[%emt 0:01:56]} 36. Qb1 {[%emt 0:01:04]} exf4 {[%emt 0:02:16]} 37. Bxf4 {[%emt 0:00:18]} Qc6+ {[%emt 0:01:25]} 38. Bf3 {[%emt 0:00:21]} Nxf3 {[%emt 0:00:33]} 39. Nxf3 {[%emt 0:00:07]} Bxf4 {[%emt 0:00:27]} 40. gxf4 {[%emt 0:00:08]} Rd4 {[%emt 0:30:13]} 41. Kg3 {[%emt 0:06:36]} Qg6+ {[%emt 0:00:00]} 42. Kf2 {[%emt 0:04:02]} Rxf4 {[%emt 0:00:00]} 43. Rg1 {[%emt 0:00:39]} Qh5 {[%emt 0:00:00]} 44. Rg3 {[%emt 0:00:56]} Qxh4 {[%emt 0:00:00]} 45. Qg1 {[%emt 0:00:55]} Bg6 {[%emt 0:00:00]} 46. Kf1 {[%emt 0:01:44]} Bh5 {[%emt 0:00:00]} 47. Rf2 {[%emt 0:01:45]} Bxf3 {[%emt 0:00:00]} 48. Rfxf3 {[%emt 0:01:21]} Rxd3 {[%emt 0:00:00]} 49. Qf2 {[%emt 0:08:00]} Qh1+ {[%emt 0:00:00]} 0-1